fUST/lending_fUST_20250625
["ID","MTS","AMOUNT","RATE_DAILY","PERIOD"]
[367499895,1750828241223,-460.0,0.00016927,2]
[367499896,1750828241232,-460.0,0.00016927,2]
[367499897,1750828241242,-460.0,0.00016927,2]
[367499898,1750828241251,-460.0,0.00016927,2]
[367499899,1750828241260,-460.0,0.00016927,2]
[367499900,1750828241269,-460.0,0.00016927,2]
[367499901,1750828241278,-460.0,0.00016927,2]
[367499902,1750828241287,-504.71779073,0.00016927,2]
[367499903,1750828241296,-460.0,0.00016927,2]
[367499904,1750828241306,-460.0,0.00016927,2]
[367499905,1750828241315,-460.0,0.00016927,2]
[367499906,1750828241325,-460.0,0.00016927,2]
[367499907,1750828241334,-460.0,0.00016927,2]
[367499908,1750828241343,-460.0,0.00016927,2]
[367499909,1750828241353,-464.23988757,0.00016927,2]
[367499910,1750828241362,-460.0,0.00016927,2]
[367499911,1750828241372,-462.6983466,0.00016927,2]
[367499912,1750828241383,-460.0,0.00016927,2]
[367499913,1750828241393,-460.0,0.00016927,2]
[367499914,1750828241403,-467.14,0.00016927,2]
[367499915,1750828241412,-460.0,0.00016927,2]
[367499916,1750828241422,-460.0,0.00016927,2]
[367499917,1750828241432,-460.0,0.00016927,2]
[367499918,1750828241442,-170.53934948,0.00016927,2]
[367499919,1750828241452,-460.0,0.00016927,2]
[367499920,1750828241463,-460.0,0.00016927,2]
[367499921,1750828241473,-460.0,0.00016927,2]
[367499922,1750828241482,-460.0,0.00016927,2]
[367499923,1750828241491,-460.0,0.00016927,2]
[367499924,1750828241500,-460.0,0.00016927,2]
[367499925,1750828241509,-460.0,0.00016927,2]
[367499926,1750828241518,-461.16733261,0.00016927,2]
[367499927,1750828241528,-460.0,0.00016927,2]
[367499928,1750828241537,-460.0,0.00016927,2]
[367499929,1750828241547,-460.0,0.00016927,2]
[367499930,1750828241556,-436.7836657,0.00016927,2]
[367499931,1750828241566,-460.0,0.00016927,2]
[367499932,1750828241575,-460.0,0.00016927,2]
[367499933,1750828241585,-508.69,0.00016927,2]
[367499934,1750828241595,-606.50134723,0.00016927,2]
[367499935,1750828241604,-460.0,0.00016927,2]
[367499936,1750828241613,-460.0,0.00016927,2]
[367499937,1750828241622,-460.0,0.00016927,2]
[367499938,1750828241634,-516.74,0.00016927,2]
[367499939,1750828241651,-460.0,0.00016927,2]
[367499940,1750828241660,-460.0,0.00016927,2]
[367499941,1750828241670,-585.41042702,0.00016927,2]
[367499942,1750828241679,-460.0,0.00016927,2]
[367499943,1750828241688,-460.0,0.00016927,2]
[367499944,1750828241698,-460.0,0.00016928,2]
[367499945,1750828241707,-460.0,0.00016928,2]
[367499946,1750828241717,-460.94995698,0.00016928,2]
[367499947,1750828241725,-308.89139599,0.00016928,2]
[367499948,1750828241735,-412.92449465,0.00016928,2]
[367499949,1750828241744,-460.0,0.00016928,2]
[367499950,1750828241753,-460.0,0.00016928,2]
[367499951,1750828241762,-460.0,0.00016928,2]
[367499952,1750828241771,-463.5788749,0.00016928,2]
[367499953,1750828241780,-460.0,0.00016928,2]
[367499954,1750828241789,-460.0,0.00016928,2]
[367499955,1750828241799,-1000.0,0.00016928,2]
[367499956,1750828241808,-460.0,0.00016928,2]
[367499957,1750828241817,-460.0,0.00016928,2]
[367499958,1750828241826,-464.05286057,0.00016928,2]
[367499959,1750828241835,-460.0,0.00016928,2]
[367499960,1750828241844,-465.85343936,0.00016928,2]
[367499961,1750828241854,-464.06216785,0.00016928,2]
[367499962,1750828241863,-460.0,0.00016928,2]
[367499963,1750828241873,-460.0,0.00016928,2]
[367499964,1750828241882,-571.53,0.00016928,2]
[367499965,1750828241891,-461.04537743,0.00016928,2]
[367499966,1750828241900,-500.0,0.00016928,2]
[367499967,1750828241910,-500.0,0.00016928,2]
[367499968,1750828241919,-379.57,0.00016928,2]
[367499969,1750828241930,-460.0,0.00016929,2]
[367499970,1750828241942,-460.0,0.00016929,2]
[367499971,1750828241953,-601.81174642,0.00016929,2]
[367499972,1750828241962,-460.0,0.00016929,2]
[367499973,1750828241972,-460.0,0.00016929,2]
[367499974,1750828241981,-460.0,0.00016929,2]
[367499975,1750828241990,-460.0,0.00016929,2]
[367499976,1750828241999,-151.57269598,0.00016929,2]
[367499977,1750828242009,-460.0,0.00016929,2]
[367499978,1750828242018,-460.0,0.00016929,2]
[367499979,1750828242028,-460.0,0.00016929,2]
[367499980,1750828242037,-460.0,0.00016929,2]
[367499981,1750828242047,-460.0,0.00016929,2]
[367499982,1750828242057,-460.0,0.00016929,2]
[367499983,1750828242066,-460.0,0.00016929,2]
[367499984,1750828242075,-460.0,0.00016929,2]
[367499985,1750828242085,-460.0,0.00016929,2]
[367499986,1750828242094,-605.3,0.00016929,2]
[367499987,1750828242103,-460.0,0.00016929,2]
[367499988,1750828242113,-548.2,0.00016929,2]
[367499989,1750828242122,-460.0,0.00016929,2]
[367499990,1750828242131,-460.0,0.00016929,2]
[367499991,1750828242140,-460.0,0.00016929,2]
[367499992,1750828242150,-460.0,0.0001693,2]
[367499993,1750828242159,-460.0,0.0001693,2]
[367499994,1750828242168,-460.0,0.0001693,2]
[367499995,1750828242177,-460.0,0.0001693,2]
[367499996,1750828242187,-460.0,0.0001693,2]
[367499997,1750828242196,-460.0,0.0001693,2]
[367499998,1750828242205,-460.0,0.0001693,2]
[367499999,1750828242215,-460.0,0.0001693,2]
[367500000,1750828242223,-292.67872126,0.0001693,2]
[367500001,1750828242232,-460.0,0.0001693,2]
[367500002,1750828242241,-391.84199713,0.0001693,2]
[367500003,1750828242251,-460.0,0.0001693,2]
[367500004,1750828242260,-460.0,0.0001693,2]
[367500005,1750828242269,-460.0,0.0001693,2]
[367500006,1750828242278,-460.0,0.0001693,2]
[367500007,1750828242287,-455.0,0.0001693,2]
[367500008,1750828242296,-460.0,0.0001693,2]
[367500009,1750828242305,-460.0,0.0001693,2]
[367500010,1750828242315,-460.0,0.0001693,2]
[367500011,1750828242324,-460.0,0.0001693,2]
[367500012,1750828242333,-460.0,0.0001693,2]
[367500013,1750828242342,-491.71,0.0001693,2]
[367500014,1750828242351,-460.0,0.0001693,2]
[367500015,1750828242360,-460.0,0.0001693,2]
[367500016,1750828242369,-460.0,0.0001693,2]
[367500017,1750828242380,-460.0,0.0001693,2]
[367500018,1750828242390,-460.0,0.0001693,2]
[367500019,1750828242399,-460.0,0.0001693,2]
[367500020,1750828242407,-527.51,0.0001693,2]
[367500021,1750828242417,-460.0,0.0001693,2]
[367500022,1750828242427,-460.0,0.0001693,2]
[367500023,1750828242436,-460.0,0.0001693,2]
[367500024,1750828242445,-460.0,0.0001693,2]
[367500025,1750828242456,-460.0,0.0001693,2]
[367500026,1750828242465,-460.0,0.0001693,2]
[367500027,1750828242474,-460.0,0.0001693,2]
[367500028,1750828242484,-460.0,0.0001693,2]
[367500029,1750828242493,-460.0,0.0001693,2]
[367500030,1750828242503,-460.0,0.0001693,2]
[367500031,1750828242512,-460.0,0.0001693,2]
[367500032,1750828242521,-460.0,0.0001693,2]
[367500033,1750828242530,-466.31,0.0001693,2]
[367500034,1750828242541,-460.0,0.0001693,2]
[367500035,1750828242550,-598.94809973,0.0001693,2]
[367500036,1750828242559,-460.0,0.00016931,2]
[367500037,1750828242569,-404.11845495,0.00017101,2]
[367500038,1750828242578,-460.0,0.00017198,2]
[367500039,1750828242587,-341.2,0.00017199,2]
[367500040,1750828242597,-288.51,0.00017199,2]
[367500041,1750828242606,-253.25,0.00017199,2]
[367500042,1750828242619,-790.73,0.00017199,2]
[367500043,1750828242629,-460.0,0.00017199,2]
[367500044,1750828242639,-1856.24,0.00017199,2]
[367500045,1750828242650,-765.63,0.00017199,2]
[367500046,1750828242659,-460.0,0.00017199,2]
[367500047,1750828242668,-802.0,0.00017199,2]
[367500048,1750828242678,-460.0,0.00017199,2]
[367500050,1750828242687,-460.0,0.00017199,2]
[367500052,1750828242697,-328.15,0.00017199,2]
[367500053,1750828242706,-556.8,0.00017199,2]
[367500054,1750828242715,-504.7,0.00017199,2]
[367500055,1750828242725,-535.38,0.00017199,2]
[367500056,1750828242736,-1047.37,0.00017199,2]
[367500057,1750828242746,-460.0,0.00017199,2]
[367500058,1750828242757,-460.0,0.00017199,2]
[367500059,1750828242767,-276.97,0.00017199,2]
[367500060,1750828242775,-460.0,0.00017199,2]
[367500061,1750828242785,-460.0,0.00017199,2]
[367500062,1750828242794,-489.7,0.000172,2]
[367500063,1750828242803,-460.0,0.000172,2]
[367500064,1750828242812,-341.08,0.000172,2]
[367500065,1750828242821,-460.0,0.000172,2]
[367500066,1750828242831,-460.0,0.000172,2]
[367500067,1750828242840,-197.58,0.000172,2]
[367500068,1750828242850,-460.0,0.000172,2]
[367500069,1750828242859,-1188.89,0.000172,2]
[367500070,1750828242869,-643.16,0.000172,2]
[367500071,1750828242878,-243.15,0.000172,2]
[367500072,1750828242887,-460.0,0.000172,2]
[367500073,1750828242897,-460.0,0.000172,2]
[367500074,1750828242906,-956.17,0.000172,2]
[367500076,1750828242917,-460.0,0.000172,2]
[367500077,1750828242926,-460.0,0.000172,2]
[367500078,1750828242936,-326.52,0.000172,2]
[367500079,1750828242946,-460.0,0.000172,2]
[367500080,1750828242955,-676.68,0.000172,2]
[367500081,1750828242966,-746.51,0.000172,2]
[367500082,1750828242975,-219.81,0.000172,2]
[367500083,1750828242985,-460.0,0.000172,2]
[367500084,1750828242994,-460.0,0.000172,2]
[367500085,1750828243004,-460.0,0.000172,2]
[367500086,1750828243014,-460.0,0.000172,2]
[367500087,1750828243023,-818.45,0.000172,2]
[367500088,1750828243032,-334.8,0.000172,2]
[367500089,1750828243042,-460.0,0.000172,2]
[367500090,1750828243052,-278.32,0.000172,2]
[367500091,1750828243062,-460.0,0.000172,2]
[367500092,1750828243071,-258.95,0.000172,2]
[367500093,1750828243080,-1254.3,0.000172,2]
[367500094,1750828243089,-460.0,0.000172,2]
[367500095,1750828243099,-460.0,0.000172,2]
[367500096,1750828243108,-601.36,0.000172,2]
[367500097,1750828243118,-460.0,0.000172,2]
[367500098,1750828243127,-213.91,0.000172,2]
[367500099,1750828243137,-194.92,0.000172,2]
[367500100,1750828243147,-673.47,0.000172,2]
[367500101,1750828243156,-313.09,0.000172,2]
[367500102,1750828243166,-460.0,0.000172,2]
[367500103,1750828243175,-460.0,0.00017201,2]
[367500104,1750828243185,-460.0,0.00017201,2]
[367500105,1750828243194,-480.21,0.00017201,2]
[367500106,1750828243203,-528.85195199,0.00017201,2]
[367500107,1750828243212,-367.57,0.00017201,2]
[367500108,1750828243222,-460.0,0.00017201,2]
[367500109,1750828243231,-460.0,0.00017201,2]
[367500110,1750828243241,-460.0,0.00017201,2]
[367500111,1750828243251,-217.06,0.00017201,2]
[367500112,1750828243259,-460.0,0.00017201,2]
[367500113,1750828243269,-460.0,0.00017201,2]
[367500114,1750828243278,-460.0,0.00017201,2]
[367500115,1750828243287,-460.0,0.00017201,2]
[367500116,1750828243296,-460.0,0.00017201,2]
[367500117,1750828243306,-460.0,0.00017201,2]
[367500118,1750828243315,-460.0,0.00017201,2]
[367500119,1750828243324,-460.0,0.00017201,2]
[367500120,1750828243334,-460.0,0.00017201,2]
[367500121,1750828243343,-460.0,0.00017201,2]
[367500122,1750828243352,-460.0,0.00017201,2]
[367500123,1750828243361,-460.0,0.00017201,2]
[367500124,1750828243372,-359.22,0.00017201,2]
[367500125,1750828243383,-566.55,0.00017201,2]
[367500126,1750828243393,-460.0,0.00017201,2]
[367500127,1750828243403,-422.49,0.00017201,2]
[367500128,1750828243418,-460.0,0.00017201,2]
[367500129,1750828243428,-317.53,0.00017201,2]
[367500131,1750828243437,-460.0,0.00017201,2]
[367500132,1750828243447,-326.99,0.00017201,2]
[367500133,1750828243456,-574.85,0.00017201,2]
[367500134,1750828243467,-460.0,0.00017201,2]
[367500135,1750828243477,-320.32,0.00017201,2]
[367500136,1750828243486,-460.0,0.00017201,2]
[367500137,1750828243495,-460.0,0.00017201,2]
[367500138,1750828243504,-464.13,0.00017201,2]
[367500139,1750828243514,-460.0,0.00017201,2]
[367500140,1750828243523,-460.0,0.00017201,2]
[367500141,1750828243533,-460.0,0.00017201,2]
[367500142,1750828243543,-460.0,0.00017201,2]
[367500143,1750828243553,-450.41,0.00017201,2]
[367500144,1750828243562,-460.0,0.00017201,2]
[367500145,1750828243571,-460.0,0.00017201,2]
[367500146,1750828243581,-429.01,0.00017203,2]
[367500147,1750828243590,-460.0,0.00017203,2]
[367500148,1750828243599,-383.5571818,0.00017203,2]
[367500149,1750828243609,-423.77,0.00017203,2]
[367500150,1750828243618,-460.0,0.00017203,2]
[367500151,1750828243627,-598.95,0.00017203,2]
[367500152,1750828243637,-460.0,0.00017203,2]
[367500153,1750828243647,-382.72,0.00017203,2]
[367500154,1750828243656,-460.0,0.00017204,2]
[367500155,1750828243666,-460.0,0.00017204,2]
[367500156,1750828243675,-491.74826938,0.00017204,2]
[367500157,1750828243685,-460.0,0.00017204,2]
[367500158,1750828243695,-460.0,0.00017204,2]
[367500159,1750828243705,-460.0,0.00017204,2]
[367500160,1750828243714,-405.64,0.00017204,2]
[367500161,1750828243724,-959.47001294,0.00017261,2]
[367500162,1750828243734,-460.0,0.00017472,2]
[367500163,1750828243743,-790.73,0.00017473,2]
[367500164,1750828243752,-460.0,0.00017473,2]
[367500165,1750828243762,-1856.24,0.00017473,2]
[367500166,1750828243771,-765.63,0.00017473,2]
[367500167,1750828243781,-460.0,0.00017473,2]
[367500168,1750828243790,-802.0,0.00017473,2]
[367500169,1750828243799,-460.0,0.00017473,2]
[367500170,1750828243808,-270.41,0.00017473,2]
[367500171,1750828243818,-556.8,0.00017473,2]
[367500172,1750828243827,-504.7,0.00017473,2]
[367500173,1750828243836,-1047.37,0.00017473,2]
[367500174,1750828243846,-460.0,0.00017473,2]
[367500175,1750828243855,-460.0,0.00017473,2]
[367500176,1750828243864,-460.0,0.00017473,2]
[367500177,1750828243874,-460.0,0.00017474,2]
[367500178,1750828243883,-460.0,0.00017474,2]
[367500179,1750828243892,-460.0,0.00017474,2]
[367500180,1750828243902,-1188.89,0.00017474,2]
[367500181,1750828243911,-643.16,0.00017474,2]
[367500182,1750828243920,-535.06,0.00017474,2]
[367500183,1750828243930,-460.0,0.00017474,2]
[367500184,1750828243939,-956.17,0.00017474,2]
[367500185,1750828243949,-460.0,0.00017474,2]
[367500186,1750828243959,-557.01,0.00017474,2]
[367500187,1750828243968,-460.0,0.00017474,2]
[367500188,1750828243977,-676.68,0.00017474,2]
[367500189,1750828243987,-746.51,0.00017474,2]
[367500190,1750828243996,-460.0,0.00017474,2]
[367500191,1750828244005,-156.15,0.00017474,2]
[367500192,1750828244015,-460.0,0.00017474,2]
[367500193,1750828244024,-818.45,0.00017474,2]
[367500194,1750828244034,-460.0,0.00017474,2]
[367500195,1750828244043,-460.0,0.00017474,2]
[367500196,1750828244052,-1254.3,0.00017474,2]
[367500197,1750828244062,-460.0,0.00017474,2]
[367500198,1750828244071,-460.0,0.00017474,2]
[367500199,1750828244081,-460.0,0.00017474,2]
[367500200,1750828244090,-673.47,0.00017474,2]
[367500201,1750828244221,-460.0,0.00017474,2]
[367500202,1750828244231,-460.0,0.00017475,2]
[367500203,1750828244240,-490.45590058,0.00017475,2]
[367500204,1750828244250,-460.0,0.00017475,2]
[367500205,1750828244259,-281.26,0.00017475,2]
[367500206,1750828244268,-460.0,0.00017475,2]
[367500207,1750828244278,-460.0,0.00017475,2]
[367500208,1750828244287,-460.0,0.00017475,2]
[367500209,1750828244296,-460.0,0.00017475,2]
[367500210,1750828244305,-460.0,0.00017475,2]
[367500211,1750828244314,-460.0,0.00017475,2]
[367500212,1750828244323,-460.0,0.00017475,2]
[367500213,1750828244332,-564.88,0.00017475,2]
[367500214,1750828244341,-460.0,0.00017475,2]
[367500215,1750828244350,-460.0,0.00017475,2]
[367500216,1750828244360,-460.0,0.00017475,2]
[367500217,1750828244369,-460.0,0.00017475,2]
[367500218,1750828244379,-460.0,0.00017475,2]
[367500219,1750828244391,-574.85,0.00017475,2]
[367500220,1750828244401,-460.0,0.00017475,2]
[367500221,1750828244410,-460.0,0.00017475,2]
[367500222,1750828244420,-460.0,0.00017475,2]
[367500223,1750828244431,-460.0,0.00017475,2]
[367500224,1750828244440,-275.18,0.00017475,2]
[367500225,1750828244451,-460.0,0.00017475,2]
[367500226,1750828244461,-460.0,0.00017475,2]
[367500227,1750828244471,-166.83,0.00017475,2]
[367500228,1750828244480,-460.0,0.00017475,2]
[367500229,1750828244489,-173.55,0.00017477,2]
[367500230,1750828244498,-460.0,0.00017477,2]
[367500231,1750828244508,-460.0,0.00017478,2]
[367500232,1750828244519,-460.0,0.00017478,2]
[367500233,1750828244529,-501.52839297,0.00017478,2]
[367500234,1750828244539,-500.0,0.00017654,2]
[367500235,1750828244551,-500.0,0.00017663,2]
[367500236,1750828244561,-500.0,0.00017676,2]
[367500237,1750828244570,-369.03910652,0.00017676,2]
[367500238,1750828244579,-500.65624776,0.00017691,2]
[367500239,1750828244589,-500.0,0.00017691,2]
[367500240,1750828244598,-500.0,0.00017691,2]
[367500241,1750828244607,-214.58032209,0.00017691,2]
[367500242,1750828244618,-500.0,0.00017691,2]
[367500243,1750828244628,-156.83182083,0.00017691,2]
[367500244,1750828244639,-501.47952994,0.00017691,2]
[367500245,1750828244648,-504.06017893,0.00017691,2]
[367500246,1750828244657,-505.5347495,0.00017709,2]
[367500247,1750828244666,-302.07678004,0.00017709,2]
[367500248,1750828244676,-500.0,0.00017709,2]
[367500249,1750828244685,-158.978938,0.00017709,2]
[367500250,1750828244694,-500.0,0.00017709,2]
[367500251,1750828244704,-501.09053302,0.00017709,2]
[367500252,1750828244714,-500.0,0.00017709,2]
[367500253,1750828244724,-500.0,0.00017712,2]
[367500254,1750828244734,-500.0,0.00017712,2]
[367500255,1750828244743,-500.0,0.00017712,2]
[367500256,1750828244753,-158.19,0.00017746,2]
[367500257,1750828244764,-790.73,0.00017747,2]
[367500258,1750828244773,-271.17,0.00017747,2]
[367500259,1750828244783,-1856.24,0.00017747,2]
[367500260,1750828244792,-765.63,0.00017747,2]
[367500261,1750828244801,-460.0,0.00017747,2]
[367500262,1750828244810,-802.0,0.00017747,2]
[367500263,1750828244820,-460.0,0.00017747,2]
[367500264,1750828244831,-556.8,0.00017747,2]
[367500265,1750828244841,-504.7,0.00017747,2]
[367500266,1750828244850,-1047.37,0.00017747,2]
[367500267,1750828244860,-193.42,0.00017747,2]
[367500268,1750828244869,-460.0,0.00017747,2]
[367500269,1750828244878,-460.0,0.00017747,2]
[367500270,1750828244888,-193.46,0.00017748,2]
[367500271,1750828244897,-460.0,0.00017748,2]
[367500272,1750828244907,-460.0,0.00017748,2]
[367500273,1750828244916,-1188.89,0.00017748,2]
[367500274,1750828244926,-643.16,0.00017748,2]
[367500275,1750828244935,-460.0,0.00017748,2]
[367500276,1750828244945,-956.17,0.00017748,2]
[367500277,1750828244956,-460.0,0.00017748,2]
[367500278,1750828244965,-460.0,0.00017748,2]
[367500279,1750828244976,-676.68,0.00017748,2]
[367500280,1750828244985,-746.51,0.00017748,2]
[367500281,1750828244996,-368.51,0.00017748,2]
[367500282,1750828245006,-460.0,0.00017748,2]
[367500283,1750828245015,-818.45,0.00017748,2]
[367500284,1750828245025,-460.0,0.00017748,2]
[367500285,1750828245034,-460.0,0.00017748,2]
[367500286,1750828245044,-1254.3,0.00017748,2]
[367500287,1750828245053,-460.0,0.00017748,2]
[367500288,1750828245062,-460.0,0.00017748,2]
[367500289,1750828245072,-460.0,0.00017748,2]
[367500290,1750828245081,-673.47,0.00017748,2]
[367500291,1750828245090,-460.0,0.00017748,2]
[367500292,1750828245100,-352.58284703,0.00017749,2]
[367500293,1750828245109,-440.19,0.00017749,2]
[367500294,1750828245119,-218.9349849,0.00017749,2]
[367500295,1750828245128,-460.0,0.00017749,2]
[367500296,1750828245137,-400.93,0.00017749,2]
[367500297,1750828245147,-460.0,0.00017749,2]
[367500298,1750828245156,-412.9,0.00017749,2]
[367500299,1750828245165,-460.0,0.00017749,2]
[367500300,1750828245175,-460.0,0.00017749,2]
[367500301,1750828245185,-460.0,0.00017749,2]
[367500302,1750828245197,-460.0,0.00017749,2]
[367500303,1750828245206,-460.0,0.00017749,2]
[367500304,1750828245215,-275.24,0.00017749,2]
[367500305,1750828245224,-460.0,0.00017749,2]
[367500306,1750828245233,-574.85,0.00017749,2]
[367500307,1750828245242,-460.0,0.00017749,2]
[367500308,1750828245252,-460.0,0.00017749,2]
[367500309,1750828245261,-460.0,0.00017749,2]
[367500310,1750828245270,-460.0,0.00017749,2]
[367500311,1750828245279,-220.02,0.00017749,2]
[367500312,1750828245289,-460.0,0.00017749,2]
[367500313,1750828245298,-460.0,0.00017749,2]
[367500314,1750828245307,-453.56,0.00017751,2]
[367500315,1750828245316,-460.0,0.00017752,2]
[367500316,1750828245325,-460.0,0.00017752,2]
[367500317,1750828245335,-500.0,0.00017754,2]
[367500318,1750828245344,-276.07900286,0.00017815,2]
[367500319,1750828245358,-230.0,0.00017944,2]
[367500320,1750828245369,-790.73,0.00018021,2]
[367500321,1750828245378,-1856.24,0.00018021,2]
[367500322,1750828245391,-765.63,0.00018021,2]
[367500323,1750828245400,-349.04473515,0.00018021,2]
[367500324,1750828245410,-802.0,0.00018021,2]
[367500325,1750828245419,-460.0,0.00018021,2]
[367500326,1750828245428,-556.8,0.00018021,2]
[367500327,1750828245438,-504.7,0.00018021,2]
[367500328,1750828245448,-1047.37,0.00018021,2]
[367500329,1750828245458,-530.53,0.00018021,2]
[367500330,1750828245467,-460.0,0.00018021,2]
[367500331,1750828245477,-460.0,0.00018022,2]
[367500332,1750828245488,-460.0,0.00018022,2]
[367500333,1750828245497,-1188.89,0.00018022,2]
[367500334,1750828245506,-643.16,0.00018022,2]
[367500335,1750828245515,-460.0,0.00018022,2]
[367500336,1750828245524,-956.17,0.00018022,2]
[367500337,1750828245533,-460.0,0.00018022,2]
[367500338,1750828245542,-676.68,0.00018022,2]
[367500339,1750828245551,-460.0,0.00018022,2]
[367500340,1750828245560,-746.51,0.00018022,2]
[367500341,1750828245570,-460.0,0.00018022,2]
[367500343,1750828245579,-818.45,0.00018022,2]
[367500344,1750828245588,-460.0,0.00018022,2]
[367500345,1750828245597,-460.0,0.00018022,2]
[367500346,1750828245606,-1254.3,0.00018022,2]
[367500347,1750828245615,-534.63,0.00018022,2]
[367500348,1750828245624,-460.0,0.00018022,2]
[367500349,1750828245634,-460.0,0.00018022,2]
[367500350,1750828245643,-673.47,0.00018022,2]
[367500351,1750828245652,-460.0,0.00018022,2]
[367500352,1750828245661,-460.0,0.00018023,2]
[367500353,1750828245671,-460.0,0.00018023,2]
[367500354,1750828245679,-460.0,0.00018023,2]
[367500355,1750828245689,-460.0,0.00018023,2]
[367500356,1750828245698,-460.0,0.00018023,2]
[367500357,1750828245707,-460.0,0.00018023,2]
[367500358,1750828245716,-460.0,0.00018023,2]
[367500359,1750828245725,-460.0,0.00018023,2]
[367500360,1750828245735,-574.85,0.00018023,2]
[367500361,1750828245744,-460.0,0.00018023,2]
[367500362,1750828245753,-460.0,0.00018023,2]
[367500363,1750828245763,-469.15872436,0.00018023,2]
[367500364,1750828245772,-460.0,0.00018023,2]
[367500365,1750828245781,-460.0,0.00018023,2]
[367500366,1750828245791,-460.0,0.00018026,2]
[367500367,1750828245800,-192.37223443,0.00018026,2]
[367500368,1750828245809,-3483.0987658,0.000182,2]
[367500369,1750828245818,-3483.09876553,0.000182,2]
[367500370,1750828245828,-805.39710031,0.00018202,2]
[367500371,1750828245837,-1000.0,0.00018224,2]
[367500372,1750828245847,-1000.0,0.00018239,2]
[367500373,1750828245856,-1000.0,0.00018239,2]
[367500374,1750828245865,-404.11845491,0.00018246,2]
[367500375,1750828245874,-1000.0,0.00018257,2]
[367500376,1750828245883,-1000.0,0.0001826,2]
[367500377,1750828245893,-160.0,0.00018282,2]
[367500378,1750828245902,-230.22714675,0.00018282,2]
[367500379,1750828245912,-213.69531788,0.00018282,2]
[367500380,1750828245921,-425.18553072,0.00018282,2]
[367500381,1750828245931,-846.80634355,0.00018282,2]
[367500382,1750828245940,-160.0,0.00018282,2]
[367500384,1750828245950,-836.86812089,0.00018282,2]
[367500386,1750828245960,-160.0,0.00018282,2]
[367500388,1750828245969,-524.21181985,0.00018282,2]
[367500390,1750828245979,-160.0,0.00018282,2]
[367500392,1750828245989,-160.0,0.00018282,2]
[367500394,1750828245998,-160.0,0.00018282,2]
[367500396,1750828246007,-160.0,0.00018282,2]
[367500398,1750828246016,-160.0,0.00018282,2]
[367500400,1750828246026,-12558.06783089,0.00018283,2]
[367500402,1750828246035,-483.48,0.00018288,3]
[367500405,1750828246045,-790.73,0.00018295,2]
[367500406,1750828246055,-1856.24,0.00018295,2]
[367500408,1750828246064,-765.63,0.00018295,2]
[367500411,1750828246074,-802.0,0.00018295,2]
[367500413,1750828246083,-460.0,0.00018295,2]
[367500414,1750828246093,-556.8,0.00018295,2]
[367500416,1750828246103,-504.7,0.00018295,2]